fUSD/lending_fUSD_20260405
["ID","MTS","AMOUNT","RATE_DAILY","PERIOD"]
[419769982,1775368257891,-851.442194,0.0001594,2]
[419769983,1775368257901,-851.442194,0.0001594,2]
[419769984,1775368257912,-851.442194,0.0001594,2]
[419769985,1775368257923,-851.442194,0.0001594,2]
[419769986,1775368257934,-851.442194,0.0001594,2]
[419769987,1775368257945,-851.442194,0.0001594,2]
[419769988,1775368257982,-332.258444,0.0001594,2]
[419769989,1775368258005,-332.258444,0.0001594,2]
[419769990,1775368258026,-332.258444,0.0001594,2]
[419769991,1775368258052,-332.258444,0.0001594,2]
[419769992,1775368258073,-332.258444,0.0001594,2]
[419769993,1775368258092,-332.258444,0.0001594,2]
[419769994,1775368258109,-332.258444,0.0001594,2]
[419769995,1775368258133,-332.258444,0.0001594,2]
[419769996,1775368258155,-553.958559,0.0001594,2]
[419769997,1775368258173,-553.958559,0.0001594,2]
[419769998,1775368258190,-553.958559,0.0001594,2]
[419769999,1775368258207,-553.958559,0.0001594,2]
[419770000,1775368258227,-553.958559,0.0001594,2]
[419770001,1775368258253,-553.958559,0.0001594,2]
[419770002,1775368258272,-553.958559,0.0001594,2]
[419770003,1775368258297,-553.958559,0.0001594,2]
[419770004,1775368258325,-153.764632,0.0001594,2]
[419770005,1775368258352,-639.31404,0.0001594,2]
[419770006,1775368258375,-639.31404,0.0001594,2]
[419770007,1775368258398,-639.31404,0.0001594,2]
[419770008,1775368258418,-639.31404,0.0001594,2]
[419770009,1775368258442,-639.31404,0.0001594,2]
[419770010,1775368258464,-639.31404,0.0001594,2]
[419770011,1775368258485,-639.31404,0.0001594,2]
[419770012,1775368258506,-639.31404,0.0001594,2]
[419770013,1775368258524,-488.611803,0.0001594,2]
[419770014,1775368258543,-488.611803,0.0001594,2]
[419770015,1775368258562,-488.611803,0.0001594,2]
[419770016,1775368258582,-488.611803,0.0001594,2]
[419770017,1775368258600,-488.611803,0.0001594,2]
[419770018,1775368258617,-488.611803,0.0001594,2]
[419770019,1775368258637,-488.611803,0.0001594,2]
[419770020,1775368258670,-488.611803,0.0001594,2]
[419770021,1775368258688,-151.0,0.0001594,2]
[419770022,1775368258716,-151.0,0.0001594,2]
[419770023,1775368258748,-151.0,0.0001594,2]
[419770024,1775368258774,-1115.5,0.00015944,2]
[419770025,1775368258796,-150.0,0.00015944,2]
[419770026,1775368258821,-5888.0,0.00015947,2]
[419770027,1775368258842,-4877.0,0.00015955,2]
[419770028,1775368258863,-1337.87763051,0.00015956,2]
[419770029,1775368258882,-4877.0,0.00015962,2]
[419770030,1775368258902,-151.0,0.00015962,2]
[419770031,1775368258920,-151.0,0.00015962,2]
[419770032,1775368258939,-151.0,0.00015962,2]
[419770033,1775368258957,-1000.0,0.0001597,2]
[419770034,1775368258976,-1000.0,0.0001597,2]
[419770035,1775368258994,-1000.0,0.0001597,2]
[419770036,1775368259011,-1000.0,0.0001597,2]
[419770037,1775368259030,-1000.0,0.0001597,2]
[419770038,1775368259046,-4877.0,0.00015975,2]
[419770039,1775368259063,-458.76,0.00015979,2]
[419770040,1775368259082,-462.0,0.0001599,2]
[419770041,1775368259099,-195.73140379,0.0001599,2]
[419770042,1775368259117,-4877.0,0.00015992,2]
[419770043,1775368259134,-1000.0,0.00015992,2]
[419770044,1775368259151,-151.0,0.00015997,2]
[419770045,1775368259169,-151.0,0.00015997,2]
[419770046,1775368259186,-1357.99078211,0.00015999,2]
[419770047,1775368259205,-64104.12979677,0.00016,2]
[419770048,1775368259225,-1790.62,0.00016,2]
[419770049,1775368259243,-175.32,0.00016,2]
[419770050,1775368259262,-250.0,0.00016,2]
[419770051,1775368259280,-250.0,0.00016,2]
[419770052,1775368259300,-3736935.51613751,0.00016,2]
[419770053,1775368261801,-380.16077578,0.00013697,2]
[419770054,1775368261811,-103.49867488,0.00013697,2]
[419770055,1775368261822,-436.03060843,0.00013697,2]
[419770056,1775368261831,-426.88891728,0.00013697,2]
[419770057,1775368261843,-73.11108272,0.00013697,2]
[419770058,1775368261852,-500.0,0.00013697,2]
[419770059,1775368261861,-119.20217667,0.00013697,2]
[419770060,1775368261891,-380.79782333,0.00013697,2]
[419770061,1775368261901,-369.20217667,0.00013697,2]
[419770062,1775368261912,-130.79782333,0.00013697,2]
[419770063,1775368261921,-500.0,0.00013697,2]
[419770064,1775368261933,-500.0,0.00013697,2]
[419770065,1775368261942,-500.0,0.00013697,2]
[419770066,1775368261952,-24.55707789,0.00013697,2]
[419770067,1775368261979,-475.44292211,0.00013697,2]
[419770068,1775368261989,-182.54273765,0.00013697,2]
[419770069,1775368261998,-342.50881002,0.00013697,2]
[419770070,1775368262981,-500.0,0.00010799,2]
[419770071,1775368262990,-500.0,0.00010799,2]
[419770072,1775368262999,-500.0,0.00010799,2]
[419770073,1775368263010,-431.73919133,0.00010799,2]
[419770074,1775368263022,-500.0,0.00010799,2]
[419770075,1775368263033,-500.0,0.00010799,2]
[419770076,1775368263043,-500.0,0.00010799,2]
[419770077,1775368263052,-500.0,0.00010799,2]
[419770078,1775368263062,-500.0,0.00010799,2]
[419770079,1775368263071,-500.0,0.00010799,2]
[419770080,1775368263081,-500.0,0.00010799,2]
[419770081,1775368263090,-500.0,0.00010799,2]
[419770082,1775368263099,-500.0,0.00010799,2]
[419770083,1775368263108,-500.0,0.00010799,2]
[419770084,1775368263118,-500.0,0.00010799,2]
[419770085,1775368263127,-500.0,0.00010799,2]
[419770086,1775368263137,-500.0,0.00010799,2]
[419770087,1775368263146,-500.0,0.00010799,2]
[419770088,1775368263154,-500.0,0.00010799,2]
[419770089,1775368263163,-500.0,0.00010799,2]
[419770090,1775368263172,-144.77356398,0.00013697,2]
[419770091,1775368263182,-500.0,0.00013697,2]
[419770092,1775368263191,-500.0,0.00013697,2]
[419770093,1775368263200,-500.0,0.00013697,2]
[419770094,1775368263210,-500.0,0.00013697,2]
[419770095,1775368263220,-500.0,0.00013697,2]
[419770096,1775368263230,-637.07152792,0.00013699,2]
[419770097,1775368263241,-215.313208,0.0001594,2]
[419770098,1775368263250,-433509.79238068,0.00016,2]
[419770099,1775368263262,-991888.20625593,0.00016,2]
[419770100,1775368263292,-1015.36665481,0.00016,2]
[419770101,1775368263321,-968.22944091,0.00016,2]
[419770102,1775368264254,-510.24547586,0.00016,2]
[419770103,1775368264266,-8256.93446698,0.00016,2]
[419770104,1775368264277,-11603.533306,0.00016,2]
[419770105,1775368264288,-590490.36859891,0.00016,2]
[419770106,1775368264299,-40234.98942779,0.00016,2]
[419770107,1775368264516,-1467.957,0.00016,2]
[419770108,1775368264528,-255.08339705,0.00016,2]
[419770134,1775368763138,152.0,6.575e-05,2]
[419770135,1775368763383,152.0,6.575e-05,2]
[419770136,1775368763634,152.0,6.575e-05,2]
[419770137,1775368763880,152.0,6.575e-05,2]
[419770138,1775368764129,152.0,6.575e-05,2]
[419770139,1775368764375,152.0,6.575e-05,2]
[419770140,1775368764620,152.0,6.575e-05,2]
[419770141,1775368764867,152.0,6.575e-05,2]
[419770142,1775368765119,152.0,6.575e-05,2]
[419770143,1775368765365,152.0,6.575e-05,2]
[419770144,1775368765951,152.0,6.575e-05,2]
[419770145,1775368766013,152.0,6.575e-05,2]
[419770146,1775368766113,152.0,6.575e-05,2]
[419770147,1775368766370,152.0,6.575e-05,2]
[419770148,1775368766615,152.0,6.575e-05,2]
[419770149,1775368767624,152.0,6.575e-05,2]
[419770150,1775368767779,152.0,6.575e-05,2]
[419770151,1775368767826,152.0,6.575e-05,2]
[419770152,1775368794899,150.0,9.723e-05,2]
[419770153,1775368942432,170.28,9.352e-05,2]
[419770168,1775369298182,-447.229905,9.872e-05,2]
[419770169,1775369298203,-408.478952,9.922e-05,2]
[419770170,1775369298225,-5000.0,9.972e-05,2]
[419770171,1775369298247,-1200.0,9.997e-05,2]
[419770172,1775369298270,-1600.0,0.00010024,2]
[419770173,1775369298293,-1344.291143,0.00010067,2]
[419770174,1775369336553,-1285.25634288,0.00010067,2]
[419770175,1775369336577,-8703.01716043,0.0001027,2]
[419770176,1775369336599,-11.72649669,0.00010371,2]
[419770178,1775369371399,-173.04601822,0.00010371,2]
[419770179,1775369371421,-242.36146803,0.00010885,2]
[419770180,1775369371442,-5000.0,0.00010942,2]
[419770181,1775369371464,-1680.0,0.00010997,2]
[419770182,1775369371486,-300.0,0.00010999,2]
[419770183,1775369371509,-2604.59251375,0.00011,2]
[419770209,1775369434611,-3771.55313877,0.00011,2]
[419770210,1775369434621,-666.44680123,0.00011277,2]
[419770211,1775369434634,-933.55319877,0.00011277,2]
[419770212,1775369434644,-371.82680123,0.00011366,2]
[419770213,1775369434655,-128.17319877,0.00011366,2]
[419770214,1775369434664,-346.24027489,0.00011391,2]
[419770215,1775369434697,-521.75972511,0.00011391,2]
[419770216,1775369434707,-1200.0,0.00011409,2]
[419770217,1775369434717,-248.85921701,0.0001141,2]
[419770218,1775369434822,-1288.32821676,0.0001141,2]
[419770219,1775369434834,-5727.46256623,0.0001141,2]
[419770220,1775369434844,-1253.0,0.00011413,2]
[419770221,1775369434854,-2990.01,0.00011507,2]
[419770222,1775369434863,-198.0,0.00011813,2]
[419770223,1775369434873,-161.0,0.00011821,2]
[419770224,1775369434883,-150.0,0.00011851,2]
[419770225,1775369434894,-424.76,0.00011941,2]
[419770226,1775369434903,-1093.2,0.00011945,2]
[419770227,1775369434913,-326.8609899,0.00011973,2]
[419770228,1775369434923,-500.0,0.00011973,2]
[419770229,1775369434933,-313.70748945,0.00011977,2]
[419770230,1775369434942,-36982.95968125,0.00011987,2]
[419770231,1775369434954,-315.31506907,0.00011987,2]
[419770232,1775369434965,-2021.97763837,0.00011987,2]
[419770233,1775369434978,-70313.94189981,0.00011987,2]
[419770234,1775369434990,-100483.07513939,0.00011987,2]
[419770235,1775369435001,-1254.41808677,0.00011987,2]
[419770236,1775369435030,-1042.34847306,0.00011987,2]
[419770239,1775369438107,-4025.23179508,0.00011987,2]
[419770240,1775369438121,-841.87908,0.00011987,2]
[419770241,1775369438163,-8618.36609069,0.00011987,2]
[419770242,1775369438228,-2510.86361204,0.00011987,2]
[419770243,1775369438272,-2057.18540609,0.00011987,2]
[419770244,1775369438284,-6828.60053988,0.00011987,2]
[419770245,1775369438295,-3127.29549732,0.00011987,2]
[419770246,1775369438306,-7616.30662808,0.00011987,2]
[419770247,1775369438328,-981.56,0.00011987,2]
[419770248,1775369438339,-400.44261915,0.00011987,2]
[419770249,1775369438411,-603.22941727,0.00011987,2]
[419770250,1775369438422,-444.78132181,0.00011987,2]
[419770251,1775369438477,-3336.10950854,0.00011987,2]
[419770252,1775369438488,-367.0,0.00011987,2]
[419770446,1775369440491,-446.78664691,0.00011987,2]
[419770448,1775369440502,-1245380.32584942,0.00011987,2]
[419770450,1775369440512,-2157.69240503,0.00011996,2]
[419770452,1775369440522,-203.96604798,0.0001208,2]
[419770454,1775369440532,-1386.78395259,0.0001208,2]
[419770456,1775369440541,-150.0,0.00012086,2]
[419770458,1775369440551,-9999.99,0.00012087,2]
[419770460,1775369440560,-999.99,0.00012087,2]
[419770462,1775369440569,-8186.34,0.00012087,2]
[419770464,1775369440579,-4999.99,0.00012087,2]
[419770466,1775369440588,-9999.99,0.00012087,2]
[419770468,1775369440598,-2175.77,0.00012087,2]
[419770471,1775369440608,-150.99,0.00012087,2]
[419770473,1775369440617,-1557.38,0.00012087,2]
[419770475,1775369440626,-5085.88,0.00012087,2]
[419770477,1775369440635,-3292.32,0.00012087,2]
[419770479,1775369440644,-1549.98,0.00012087,2]
[419770481,1775369440653,-299.99,0.00012087,2]
[419770483,1775369440664,-351.47,0.00012087,2]
[419770485,1775369440673,-19999.99,0.00012087,2]
[419770487,1775369440683,-150.99,0.00012087,2]
[419770489,1775369440692,-290.32,0.00012143,2]
[419770491,1775369440701,-619.56868064,0.00012174,2]
[419770493,1775369440710,-790.0,0.0001226,2]
[419770495,1775369440719,-166.66,0.0001226,2]
[419770497,1775369440729,-1000.0,0.00012521,2]
[419770499,1775369440738,-1600.0,0.0001253,2]
[419770501,1775369440748,-1680.0,0.0001255,2]
[419770503,1775369440758,-165.60764024,0.00012628,2]
[419770505,1775369440767,-166.66,0.00012665,2]
[419770507,1775369440777,-8785.39,0.00012893,2]
[419770509,1775369440786,-9999.99,0.00012893,2]
[419770511,1775369440796,-18883.81,0.00012893,2]
[419770513,1775369440805,-2325.1708,0.00012911,2]
[419770515,1775369440814,-98666.4651,0.00012911,2]
[419770517,1775369440824,-2500.0,0.00012911,2]
[419770519,1775369440833,-39114.27229377,0.00012911,2]
[419770521,1775369440843,-500.0,0.00012998,2]
[419770523,1775369440852,-603.52657682,0.00012998,2]
[419770525,1775369440862,-84914.69579609,0.00012999,2]
[419770527,1775369440872,-250.0,0.00013,2]
[419770529,1775369440882,-5651.24226969,0.00013,2]
[419770531,1775369440891,-1811.5322899,0.00013,15]
[419770533,1775369440900,-5390.67222516,0.0001305,2]
[419770535,1775369440910,-1500.0,0.00013068,2]
[419770537,1775369440919,-166.66,0.0001307,2]
[419770538,1775369440928,-501.0,0.00013111,2]
[419770540,1775369440938,-39114.2722937,0.00013225,2]
[419770542,1775369440947,-166.66,0.00013474,2]
[419770545,1775369440958,-822.41117775,0.00013498,2]
[419770547,1775369440967,-22280.254243,0.00013498,2]
[419770548,1775369440976,-268.87816092,0.00013498,2]
[419770551,1775369440988,-494.23746172,0.00013499,2]
[419770553,1775369440997,-800.0,0.000135,4]
[419770555,1775369441008,-3000.0,0.00013534,2]
[419770557,1775369441019,-39114.2722937,0.0001354,2]
[419770559,1775369441028,-313.70748945,0.00013588,2]
[419770561,1775369441038,-151.0,0.00013595,2]
[419770563,1775369441048,-169.418084,0.00013595,2]
[419770565,1775369441058,-159.665859,0.00013595,2]
[419770567,1775369441068,-151.0,0.00013595,2]
[419770569,1775369441077,-151.0,0.00013595,2]
[419770571,1775369441089,-151.0,0.00013595,2]
[419770573,1775369441098,-2019.0,0.00013598,5]
[419770575,1775369441108,-2500000.0,0.00013598,2]
[419770577,1775369441118,-33032.4137,0.00013599,2]
[419770579,1775369441127,-1000.0,0.00013599,2]
[419770581,1775369441136,-1600.0,0.000136,4]
[419770583,1775369441145,-2000.0,0.00013616,2]
[419770585,1775369441154,-503.0,0.00013644,2]
[419770587,1775369441163,-500.0,0.00013673,2]
[419770589,1775369441172,-500.0,0.00013673,2]
[419770591,1775369441181,-500.0,0.00013673,2]
[419770593,1775369441191,-500.0,0.00013673,2]
[419770595,1775369441200,-500.0,0.00013673,2]
[419770597,1775369441209,-500.0,0.00013695,2]
[419770599,1775369441219,-500.0,0.00013695,2]
[419770601,1775369441228,-500.0,0.00013695,2]
[419770603,1775369441239,-500.0,0.00013695,2]
[419770605,1775369441248,-1357.99078211,0.00013697,2]
[419770607,1775369441257,-500.0,0.00013698,2]
[419770609,1775369441267,-500.0,0.00013698,2]
[419770611,1775369441276,-500.0,0.00013698,2]
[419770612,1775369441285,-500.0,0.00013698,2]
[419770615,1775369441295,-500.0,0.00013698,2]
[419770617,1775369441307,-525.972,0.00013698,2]
[419770619,1775369441317,-1418.01,0.00013698,2]
[419770621,1775369441326,-1418.01,0.00013698,2]
[419770623,1775369441336,-1418.01,0.00013698,2]
[419770625,1775369441346,-1418.01,0.00013698,2]
[419770627,1775369441356,-1418.01,0.00013698,2]
[419770629,1775369441365,-1418.01,0.00013698,2]
[419770631,1775369441374,-1418.01,0.00013698,2]
[419770633,1775369441383,-1418.01,0.00013698,2]
[419770635,1775369441394,-1418.01,0.00013698,2]
[419770636,1775369441403,-1418.01,0.00013698,2]
[419770638,1775369441414,-1418.01,0.00013698,2]
[419770640,1775369441423,-1418.01,0.00013698,2]
[419770642,1775369441433,-1418.01,0.00013698,2]
[419770644,1775369441443,-1418.01,0.00013698,2]
[419770646,1775369441453,-1418.01,0.00013698,2]
[419770648,1775369441462,-1418.01,0.00013698,2]
[419770650,1775369441471,-1418.01,0.00013698,2]
[419770652,1775369441481,-1418.01,0.00013698,2]
[419770654,1775369441490,-1418.01,0.00013698,2]
[419770656,1775369441499,-989.7,0.00013698,2]
[419770658,1775369441508,-989.7,0.00013698,2]
[419770660,1775369441518,-989.7,0.00013698,2]
[419770662,1775369441529,-989.7,0.00013698,2]
[419770664,1775369441539,-989.7,0.00013698,2]
[419770666,1775369441548,-989.7,0.00013698,2]
[419770668,1775369441557,-500.0,0.00013698,2]
[419770670,1775369441567,-500.0,0.00013698,2]
[419770672,1775369441576,-500.0,0.00013698,2]
[419770674,1775369441585,-500.0,0.00013698,2]
[419770676,1775369441594,-500.0,0.00013698,2]
[419770678,1775369441604,-500.0,0.00013698,2]
[419770680,1775369441613,-500.0,0.00013698,2]
[419770682,1775369441623,-564.47521126,0.00013698,2]
[419770685,1775369441633,-500.0,0.00013698,2]
[419770688,1775369441643,-504.35317897,0.00013698,2]
[419770690,1775369441652,-1183.01,0.00013698,2]
[419770692,1775369441662,-1183.01,0.00013698,2]
[419770694,1775369441671,-1183.01,0.00013698,2]
[419770696,1775369441681,-1183.01,0.00013698,2]
[419770698,1775369441703,-1183.01,0.00013698,2]
[419770700,1775369441713,-1183.01,0.00013698,2]
[419770702,1775369441723,-785.83,0.00013698,2]
[419770704,1775369441732,-785.83,0.00013698,2]
[419770706,1775369441743,-785.83,0.00013698,2]
[419770709,1775369441754,-785.83,0.00013698,2]
[419770710,1775369441764,-785.83,0.00013698,2]
[419770713,1775369441775,-785.83,0.00013698,2]
[419770715,1775369441784,-785.83,0.00013698,2]
[419770717,1775369441794,-785.83,0.00013698,2]
[419770719,1775369441804,-785.83,0.00013698,2]
[419770721,1775369441815,-785.83,0.00013698,2]
[419770723,1775369441825,-785.83,0.00013698,2]
[419770724,1775369441834,-785.83,0.00013698,2]
[419770725,1775369441844,-785.83,0.00013698,2]
[419770726,1775369441854,-785.83,0.00013698,2]
[419770727,1775369441864,-785.83,0.00013698,2]
[419770728,1775369441874,-785.83,0.00013698,2]
[419770729,1775369441885,-785.83,0.00013698,2]
[419770730,1775369441894,-785.83,0.00013698,2]
[419770731,1775369441904,-785.83,0.00013698,2]
[419770733,1775369441914,-1310.34,0.00013698,2]
[419770735,1775369441923,-1310.34,0.00013698,2]
[419770737,1775369441932,-1310.34,0.00013698,2]
[419770739,1775369441942,-1310.34,0.00013698,2]
[419770741,1775369441951,-1310.34,0.00013698,2]
[419770743,1775369441960,-1310.34,0.00013698,2]
[419770745,1775369441970,-1310.34,0.00013698,2]
[419770747,1775369441979,-1310.34,0.00013698,2]
[419770749,1775369441988,-1310.34,0.00013698,2]
[419770751,1775369441997,-1310.34,0.00013698,2]
[419770753,1775369442007,-1310.34,0.00013698,2]
[419770755,1775369442017,-1310.34,0.00013698,2]
[419770757,1775369442026,-1310.34,0.00013698,2]
[419770759,1775369442036,-1310.34,0.00013698,2]
[419770761,1775369442044,-1310.34,0.00013698,2]
[419770763,1775369442054,-1310.34,0.00013698,2]
[419770765,1775369442062,-1310.34,0.00013698,2]
[419770767,1775369442072,-1310.34,0.00013698,2]
[419770769,1775369442082,-1310.34,0.00013698,2]
[419770771,1775369442091,-889.96,0.00013698,2]
[419770773,1775369442101,-889.96,0.00013698,2]
[419770775,1775369442114,-889.96,0.00013698,2]
[419770777,1775369442123,-889.96,0.00013698,2]
[419770779,1775369442133,-889.96,0.00013698,2]
[419770781,1775369442142,-889.96,0.00013698,2]
[419770783,1775369442153,-500.0,0.00013698,2]
[419770785,1775369442162,-500.0,0.00013698,2]
[419770787,1775369442173,-500.0,0.00013698,2]
[419770789,1775369442183,-500.0,0.00013698,2]
[419770791,1775369442193,-500.0,0.00013698,2]
[419770793,1775369442203,-500.0,0.00013698,2]
[419770796,1775369442218,-500.0,0.00013698,2]
[419770798,1775369442228,-500.0,0.00013698,2]
[419770800,1775369442238,-500.0,0.00013698,2]
[419770802,1775369442248,-500.0,0.00013698,2]
[419770804,1775369442257,-500.0,0.00013698,2]
[419770806,1775369442267,-500.0,0.00013698,2]
[419770808,1775369442276,-500.0,0.00013698,2]
[419770810,1775369442286,-500.0,0.00013698,2]
[419770812,1775369442295,-500.0,0.00013698,2]
[419770814,1775369442307,-500.0,0.00013698,2]
[419770816,1775369442317,-500.0,0.00013698,2]
[419770818,1775369442326,-500.0,0.00013698,2]
[419770820,1775369442335,-500.0,0.00013698,2]
[419770822,1775369442345,-559.50723655,0.00013698,2]
[419770824,1775369442355,-500.0,0.00013698,2]
[419770826,1775369442365,-500.0,0.00013698,2]
[419770828,1775369442374,-500.0,0.00013698,2]
[419770830,1775369442383,-500.0,0.00013698,2]
[419770832,1775369442393,-500.0,0.00013698,2]
[419770834,1775369442402,-500.0,0.00013698,2]
[419770836,1775369442411,-500.0,0.00013698,2]
[419770838,1775369442420,-500.0,0.00013698,2]
[419770840,1775369442430,-500.0,0.00013698,2]
[419770842,1775369442439,-433.23440034,0.00013698,2]
[419770844,1775369442448,-755.17,0.00013698,2]
[419770846,1775369442457,-755.17,0.00013698,2]
[419770848,1775369442467,-755.17,0.00013698,2]
[419770850,1775369442476,-755.17,0.00013698,2]
[419770852,1775369442485,-755.17,0.00013698,2]
[419770854,1775369442494,-755.17,0.00013698,2]
[419770856,1775369442504,-755.17,0.00013698,2]
[419770858,1775369442512,-755.17,0.00013698,2]
[419770860,1775369442522,-755.17,0.00013698,2]
[419770862,1775369442532,-755.17,0.00013698,2]
[419770864,1775369442540,-755.17,0.00013698,2]
[419770866,1775369442550,-755.17,0.00013698,2]
[419770868,1775369442559,-755.17,0.00013698,2]
[419770870,1775369442568,-755.17,0.00013698,2]
[419770872,1775369442578,-755.17,0.00013698,2]
[419770874,1775369442587,-755.17,0.00013698,2]
[419770877,1775369442596,-755.17,0.00013698,2]
[419770879,1775369442607,-755.17,0.00013698,2]
[419770881,1775369442616,-1166.27,0.00013698,2]
[419770883,1775369442626,-1166.27,0.00013698,2]
[419770885,1775369442635,-1166.27,0.00013698,2]
[419770887,1775369442645,-1166.27,0.00013698,2]
[419770889,1775369442654,-1166.27,0.00013698,2]
[419770891,1775369442664,-1166.27,0.00013698,2]
[419770893,1775369442673,-1166.27,0.00013698,2]
[419770895,1775369442682,-1166.27,0.00013698,2]
[419770897,1775369442706,-1166.27,0.00013698,2]
[419770899,1775369442715,-1166.27,0.00013698,2]
[419770901,1775369442725,-1166.27,0.00013698,2]
[419770903,1775369442734,-1166.27,0.00013698,2]
[419770905,1775369442743,-1166.27,0.00013698,2]
[419770907,1775369442752,-1166.27,0.00013698,2]
[419770909,1775369442762,-1166.27,0.00013698,2]
[419770911,1775369442771,-1166.27,0.00013698,2]
[419770913,1775369442781,-1166.27,0.00013698,2]
[419770915,1775369442790,-1166.27,0.00013698,2]
[419770917,1775369442799,-500.0,0.00013698,2]
[419770919,1775369442808,-500.0,0.00013698,2]
[419770921,1775369442817,-1124.72,0.00013698,2]
[419770922,1775369442827,-1124.72,0.00013698,2]
[419770924,1775369442836,-1124.72,0.00013698,2]
[419770926,1775369442845,-1124.72,0.00013698,2]
[419770928,1775369442854,-1124.72,0.00013698,2]
[419770930,1775369442863,-1124.72,0.00013698,2]
[419770932,1775369442873,-1124.72,0.00013698,2]
[419770935,1775369442882,-1124.72,0.00013698,2]
[419770937,1775369442892,-1124.72,0.00013698,2]
[419770939,1775369442901,-1124.72,0.00013698,2]
[419770941,1775369442910,-1124.72,0.00013698,2]
[419770943,1775369442920,-1124.72,0.00013698,2]
[419770945,1775369442929,-1124.72,0.00013698,2]
[419770947,1775369442939,-1124.72,0.00013698,2]
[419770949,1775369442948,-1124.72,0.00013698,2]
[419770951,1775369442958,-1124.72,0.00013698,2]
[419770953,1775369442967,-1124.72,0.00013698,2]
[419770955,1775369442976,-1124.72,0.00013698,2]
[419770957,1775369442986,-899.16,0.00013698,2]
[419770959,1775369442995,-899.16,0.00013698,2]
[419770961,1775369443005,-899.16,0.00013698,2]
[419770963,1775369443015,-899.16,0.00013698,2]
[419770965,1775369443025,-899.16,0.00013698,2]
[419770967,1775369443036,-899.16,0.00013698,2]
[419770969,1775369443046,-899.16,0.00013698,2]
[419770971,1775369443055,-899.16,0.00013698,2]
[419770973,1775369443065,-899.16,0.00013698,2]
[419770975,1775369443074,-899.16,0.00013698,2]
[419770977,1775369443084,-899.16,0.00013698,2]
[419770979,1775369443094,-899.16,0.00013698,2]
[419770981,1775369443104,-899.16,0.00013698,2]
[419770983,1775369443113,-899.16,0.00013698,2]
[419770986,1775369443123,-899.16,0.00013698,2]
[419770988,1775369443133,-899.16,0.00013698,2]
[419770990,1775369443142,-899.16,0.00013698,2]
[419770992,1775369443152,-899.16,0.00013698,2]
[419770994,1775369443161,-500.0,0.00013698,2]
[419770996,1775369443171,-500.0,0.00013698,2]
[419770998,1775369443181,-500.0,0.00013698,2]
[419771000,1775369443190,-500.0,0.00013698,2]
[419771002,1775369443200,-500.0,0.00013698,2]
[419771004,1775369443210,-500.0,0.00013698,2]
[419771006,1775369443219,-500.0,0.00013698,2]
[419771008,1775369443229,-500.0,0.00013698,2]
[419771010,1775369443239,-500.0,0.00013698,2]
[419771012,1775369443248,-500.0,0.00013698,2]
[419771014,1775369443258,-500.0,0.00013698,2]
[419771016,1775369443268,-500.0,0.00013698,2]
[419771018,1775369443278,-500.0,0.00013698,2]
[419771020,1775369443288,-500.0,0.00013698,2]
[419771022,1775369443297,-500.0,0.00013698,2]
[419771024,1775369443307,-500.0,0.00013698,2]
[419771026,1775369443317,-500.0,0.00013698,2]
[419771028,1775369443326,-500.0,0.00013698,2]
[419771030,1775369443336,-500.0,0.00013698,2]
[419771032,1775369443345,-500.0,0.00013698,2]
[419771034,1775369443355,-500.0,0.00013698,2]